{"text_format":"1","workbook":"xlsx","n_sheets":2,"sheets":["Счет","Реализация"],"not_rendered":{"charts":0,"images":1,"macros":0,"external_links":0,"defined_names":3,"comments":0,"pivot_tables":0},"unopened":[],"bounds":{"document_bytes":16777216,"sheet_cells":100000,"rows_first":2000,"rows_last":500,"rows_between":2000,"halvings":0,"cell_chars":16384,"cell_head_chars":4096},"cells_cut":0,"cells_raw":0,"read":"whole","date_system":"1900"}

{"sheet":"Счет","index":0,"n_rows":15,"n_cols":10,"rows_kept":15,"cut":false,"hidden":false,"merged":[]}
[]
[null,null,null,"Реестр выписанных счетов"]
["Поставщик","Склад отгрузки","Номенклатура","Покупатель","Дата счета","Номер счета","Кол-во, тн","Отгружено, тн ","СТАТУС ОТГРУЗКИ","правильный результат Статуса"]
["Омега, ООО","склад №1","Товар 1","Сирота Надежда Петровна, ФО-П","2021-10-06","0000033",44,{"$f":"SUMIF(Реализация!$F$4:$G$90,F4,Реализация!$G$4:$G$90)","v":44},{"$f":"IF(A4=\"\",\"-\",IF(E4=\"\",\"запланировано\",IF(Реализация!A4=\"\",\"Не отгружено\",IF(Реализация!G4>G4,\"Перегружено\",IF(G4=Реализация!G4,\"Отгружено полностью\",\"Отгружено частично\")))))","v":"Отгружено частично"},"Отгружено полностью"]
["Прогрес, ООО","склад №2","Товар 2","Колос, ТД ООО","2021-10-07","0000034",22,{"$f":"SUMIF(Реализация!$F$4:$G$90,F5,Реализация!$G$4:$G$90)","v":22},{"$f":"IF(A5=\"\",\"-\",IF(E5=\"\",\"запланировано\",IF(Реализация!A5=\"\",\"Не отгружено\",IF(Реализация!G5>G5,\"Перегружено\",IF(G5=Реализация!G5,\"Отгружено полностью\",\"Отгружено частично\")))))","v":"Отгружено частично"},"Отгружено полностью"]
["Прогрес, ООО","склад №1","Товар 3","Проминь, ООО","2021-10-07","0000035",5,{"$f":"SUMIF(Реализация!$F$4:$G$90,F6,Реализация!$G$4:$G$90)","v":6},{"$f":"IF(A6=\"\",\"-\",IF(E6=\"\",\"запланировано\",IF(Реализация!A6=\"\",\"Не отгружено\",IF(Реализация!G6>G6,\"Перегружено\",IF(G6=Реализация!G6,\"Отгружено полностью\",\"Отгружено частично\")))))","v":"Перегружено"},"Перегружено"]
["Прогрес, ООО","склад №1","Товар 5","Искра, ПП","2021-10-08","0000036",11,{"$f":"SUMIF(Реализация!$F$4:$G$90,F7,Реализация!$G$4:$G$90)","v":0},{"$f":"IF(A7=\"\",\"-\",IF(E7=\"\",\"запланировано\",IF(Реализация!A7=\"\",\"Не отгружено\",IF(Реализация!G7>G7,\"Перегружено\",IF(G7=Реализация!G7,\"Отгружено полностью\",\"Отгружено частично\")))))","v":"Отгружено частично"},"Не отгружено"]
["Омега, ООО","склад №2","Товар 4","Агростен, ООО","2021-10-08","0000037",20,{"$f":"SUMIF(Реализация!$F$4:$G$90,F8,Реализация!$G$4:$G$90)","v":0},{"$f":"IF(A8=\"\",\"-\",IF(E8=\"\",\"запланировано\",IF(Реализация!A8=\"\",\"Не отгружено\",IF(Реализация!G8>G8,\"Перегружено\",IF(G8=Реализация!G8,\"Отгружено полностью\",\"Отгружено частично\")))))","v":"Отгружено частично"},"Не отгружено"]
["Омега, ООО","склад №2","Товар 8","Новый Уржавец , ООО","2021-10-08","0000038",3,{"$f":"SUMIF(Реализация!$F$4:$G$90,F9,Реализация!$G$4:$G$90)","v":3},{"$f":"IF(A9=\"\",\"-\",IF(E9=\"\",\"запланировано\",IF(Реализация!A9=\"\",\"Не отгружено\",IF(Реализация!G9>G9,\"Перегружено\",IF(G9=Реализация!G9,\"Отгружено полностью\",\"Отгружено частично\")))))","v":"Перегружено"},"Отгружено полностью"]
["Прогрес, ООО","склад №1","Товар 6","Заря, ООО","2021-10-08","0000039",5,{"$f":"SUMIF(Реализация!$F$4:$G$90,F10,Реализация!$G$4:$G$90)","v":0},{"$f":"IF(A10=\"\",\"-\",IF(E10=\"\",\"запланировано\",IF(Реализация!A10=\"\",\"Не отгружено\",IF(Реализация!G10>G10,\"Перегружено\",IF(G10=Реализация!G10,\"Отгружено полностью\",\"Отгружено частично\")))))","v":"Перегружено"},"Не отгружено"]
["Прогрес, ООО","склад №1","Товар 7","Новый Уржавец , ООО","2021-10-11","0000040",34,{"$f":"SUMIF(Реализация!$F$4:$G$90,F11,Реализация!$G$4:$G$90)","v":0},{"$f":"IF(A11=\"\",\"-\",IF(E11=\"\",\"запланировано\",IF(Реализация!A11=\"\",\"Не отгружено\",IF(Реализация!G11>G11,\"Перегружено\",IF(G11=Реализация!G11,\"Отгружено полностью\",\"Отгружено частично\")))))","v":"Не отгружено"},"Не отгружено"]
["Омега, ООО","склад №2","Товар 2","Новый Уржавец , ООО","2021-10-11","0000041",64,{"$f":"SUMIF(Реализация!$F$4:$G$90,F12,Реализация!$G$4:$G$90)","v":0},{"$f":"IF(A12=\"\",\"-\",IF(E12=\"\",\"запланировано\",IF(Реализация!A12=\"\",\"Не отгружено\",IF(Реализация!G12>G12,\"Перегружено\",IF(G12=Реализация!G12,\"Отгружено полностью\",\"Отгружено частично\")))))","v":"Не отгружено"},"Не отгружено"]
["Омега, ООО","склад №2","Товар 1","Сирота Надежда Петровна, ФО-П","2021-10-11","0000044",22.1,{"$f":"SUMIF(Реализация!$F$4:$G$90,F13,Реализация!$G$4:$G$90)","v":0},{"$f":"IF(A13=\"\",\"-\",IF(E13=\"\",\"запланировано\",IF(Реализация!A13=\"\",\"Не отгружено\",IF(Реализация!G13>G13,\"Перегружено\",IF(G13=Реализация!G13,\"Отгружено полностью\",\"Отгружено частично\")))))","v":"Не отгружено"},"Не отгружено"]
["Омега, ООО","склад №2","Товар 7","Колос, ТД ООО","2021-10-12","0000045",11,{"$f":"SUMIF(Реализация!$F$4:$G$90,F14,Реализация!$G$4:$G$90)","v":10},{"$f":"IF(A14=\"\",\"-\",IF(E14=\"\",\"запланировано\",IF(Реализация!A14=\"\",\"Не отгружено\",IF(Реализация!G14>G14,\"Перегружено\",IF(G14=Реализация!G14,\"Отгружено полностью\",\"Отгружено частично\")))))","v":"Не отгружено"},"Не отгружено"]
["Омега, ООО","склад №2","Товар 8","Искра, ПП","2021-10-12","0000046",66,{"$f":"SUMIF(Реализация!$F$4:$G$90,F15,Реализация!$G$4:$G$90)","v":0},{"$f":"IF(A15=\"\",\"-\",IF(E15=\"\",\"запланировано\",IF(Реализация!A15=\"\",\"Не отгружено\",IF(Реализация!G15>G15,\"Перегружено\",IF(G15=Реализация!G15,\"Отгружено полностью\",\"Отгружено частично\")))))","v":"Не отгружено"},"Не отгружено"]

{"sheet":"Реализация","index":1,"n_rows":10,"n_cols":7,"rows_kept":10,"cut":false,"hidden":false,"merged":[]}
[]
[null,null,null,null,"Учет реализации"]
["Дата отгрузки","Поставщик","Склад","Номенклатура","Покупатель","Номер счета","Кол-во, ОТГРУЖЕННОГО товара тн"]
["2021-10-08","Омега, ООО","склад №1","Товар 1","Сирота Надежда Петровна, ФО-П","0000033",24]
["2021-10-08","Прогрес, ООО","склад №2","Товар 2","Колос, ТД ООО","0000034",10]
["2021-10-09","Прогрес, ООО","склад №2","Товар 2","Колос, ТД ООО","0000034",12]
["2021-10-10","Прогрес, ООО","склад №1","Товар 3","Проминь, ООО","0000035",6]
["2021-10-11","Омега, ООО","склад №2","Товар 8","Новый Уржавец , ООО","0000038",3]
["2021-10-14","Омега, ООО","склад №2","Товар 7","Колос, ТД ООО","0000045",10]
["2021-10-15","Омега, ООО","склад №1","Товар 1","Сирота Надежда Петровна, ФО-П","0000033",20]